bitfinex-derivatives/quotes_ETHF0:USTF0_20260117
["timestamp","ask_amount","ask_price","bid_price","bid_amount"]
[1768675108877,0.00333072,3322.6,3321.5,0.96817611]
[1768675109074,0.99103845,3322.5,3321.5,0.96817611]
[1768675109277,0.99103845,3322.4,3321.5,0.96817611]
[1768675109479,0.00333072,3322.6,3321.5,0.96817611]
[1768675109480,0.19511075,3322.6,3321.5,0.96817611]
[1768675109673,0.99136228,3322.5,3321.3,0.96817611]
[1768675109972,0.99136228,3322.4,3321.3,0.96817611]
[1768675110173,0.19511075,3322.6,3321.3,0.96817611]
[1768675110374,0.99139903,3322.5,3321.3,0.96817611]
[1768675110573,0.99139903,3322.4,3321.3,0.96817611]
[1768675110878,0.19511075,3322.6,3320.5,0.15063]
[1768675110879,0.96817611,3321.9,3320.5,1.30027072]
[1768675113083,1.15995614,3322.2,3320.5,1.30027072]
[1768675113384,1.16906786,3322.1,3320.5,1.30027072]
[1768675113681,0.17665213,3322.1,3320.5,1.11880611]
[1768675113877,2.13740409,3322.0,3320.5,0.96817611]
[1768675114079,0.17665213,3321.9,3320.5,0.96817611]
[1768675115672,0.99293915,3321.8,3320.5,0.96817611]
[1768675115879,0.17665213,3321.9,3320.5,0.96817611]
[1768675116084,0.99293915,3321.8,3320.5,0.96817611]
[1768675116384,0.17665213,3321.9,3320.5,0.96817611]
[1768675116583,0.99317166,3321.8,3320.5,0.96817611]
[1768675116783,0.17665213,3321.9,3320.5,0.96817611]
[1768675116985,0.99317166,3321.8,3320.5,0.96817611]
[1768675117284,0.17665213,3321.9,3320.5,0.96817611]
[1768675117486,0.9934524,3321.8,3320.5,0.96817611]
[1768675117685,0.17665213,3321.9,3320.5,0.96817611]
[1768675117887,0.99345322,3321.8,3320.5,0.96817611]
[1768675118079,0.17665213,3321.9,3320.5,0.96817611]
[1768675118277,0.99345322,3321.8,3320.5,0.96817611]
[1768675118487,0.17665213,3321.9,3320.5,0.96817611]
[1768675118691,0.99367892,3321.8,3320.5,0.96817611]
[1768675118880,0.17665213,3321.9,3320.5,0.96817611]
[1768675119185,0.99367892,3321.8,3320.5,0.96817611]
[1768675119388,0.17665213,3321.9,3320.5,0.96817611]
[1768675119589,0.99366823,3321.8,3320.5,0.96817611]
[1768675119787,0.17665213,3321.9,3320.5,0.96817611]
[1768675120086,0.99366823,3321.8,3320.5,0.96817611]
[1768675120280,0.17665213,3321.9,3320.5,0.96817611]
[1768675120481,0.99363578,3321.8,3320.5,0.96817611]
[1768675120678,0.96817611,3321.4,3320.1,0.17762494]
[1768675120887,1.14482824,3321.7,3320.3,0.96817611]
[1768675121193,0.993633,3321.6,3320.3,0.96817611]
[1768675121492,0.993633,3321.5,3320.3,0.96817611]
[1768675121686,0.993633,3321.4,3320.1,0.17762494]
[1768675121891,0.17665213,3321.7,3320.4,0.96817611]
[1768675122091,0.9933594,3321.6,3320.4,0.96817611]
[1768675122391,0.9933594,3321.5,3320.4,0.96817611]
[1768675122586,0.9933594,3321.4,3320.4,0.96817611]
[1768675122890,0.17665213,3321.7,3320.4,0.96817611]
[1768675123086,0.99307883,3321.6,3320.4,0.96817611]
[1768675123300,0.99307883,3321.5,3320.4,0.96817611]
[1768675123494,0.99307883,3321.4,3320.4,0.96817611]
[1768675123688,0.17665213,3321.7,3320.4,0.96817611]
[1768675123888,0.99285854,3321.6,3320.4,0.96817611]
[1768675124093,0.99285854,3321.5,3320.4,0.96817611]
[1768675124288,0.17665213,3321.7,3320.4,0.96817611]
[1768675124590,0.99268575,3321.6,3320.4,0.96817611]
[1768675124792,0.99268575,3321.5,3320.4,0.96817611]
[1768675124992,0.17665213,3321.7,3320.4,0.96817611]
[1768675125292,0.99272853,3321.6,3320.4,0.96817611]
[1768675125481,0.99272853,3321.5,3320.4,0.96817611]
[1768675125788,0.17665213,3321.7,3320.4,0.96817611]
[1768675125990,0.992594,3321.6,3320.4,0.96817611]
[1768675126193,0.17665213,3321.7,3320.4,0.96817611]
[1768675126398,0.99249887,3321.6,3320.4,0.96817611]
[1768675126588,0.17665213,3321.7,3320.4,0.96817611]
[1768675126788,0.99249893,3321.6,3320.4,0.96817611]
[1768675127094,0.17665213,3321.7,3320.4,0.96817611]
[1768675127389,0.99249882,3321.6,3320.4,0.96817611]
[1768675127697,0.17665213,3321.7,3320.4,0.96817611]
[1768675127884,0.99242166,3321.6,3320.4,0.96817611]
[1768675128085,0.17665213,3321.7,3320.4,0.96817611]
[1768675128395,0.99242171,3321.6,3320.4,0.96817611]
[1768675128697,0.17665213,3321.7,3320.1,0.17762494]
[1768675128895,0.99235519,3321.6,3320.5,0.96817611]
[1768675129097,0.17665213,3321.7,3320.5,0.96817611]
[1768675129395,0.99235529,3321.6,3320.5,0.96817611]
[1768675129595,0.17665213,3321.7,3320.5,0.96817611]
[1768675129798,0.99479794,3321.6,3320.5,0.96817611]
[1768675129994,0.17665213,3321.7,3320.5,0.96817611]
[1768675130195,0.99479848,3321.6,3320.5,0.96817611]
[1768675130494,0.17665213,3321.7,3320.5,0.96817611]
[1768675130703,0.99476609,3321.6,3320.5,0.96817611]
[1768675131005,0.17665213,3321.7,3320.5,0.96817611]
[1768675131296,0.99473909,3321.6,3320.5,0.96817611]
[1768675131494,0.17665213,3321.7,3320.5,0.96817611]
[1768675131794,0.99472921,3321.6,3320.5,0.96817611]
[1768675131994,0.17665213,3321.7,3320.5,0.96817611]
[1768675132295,0.99472921,3321.6,3320.5,0.96817611]
[1768675132593,0.17665213,3321.7,3320.5,0.96817611]
[1768675132785,0.9947325,3321.6,3320.5,0.96817611]
[1768675132987,0.17665213,3321.7,3320.5,0.96817611]
[1768675133186,0.99473235,3321.6,3320.5,0.96817611]
[1768675133395,0.17665213,3321.7,3320.5,0.96817611]
[1768675133597,0.99475326,3321.6,3320.5,0.96817611]
[1768675133897,0.17665213,3321.7,3320.5,0.96817611]
[1768675134097,0.99475326,3321.6,3320.5,0.96817611]
[1768675134297,0.17665213,3321.7,3320.5,0.96817611]
[1768675134491,0.99479159,3321.6,3320.5,0.96817611]
[1768675134690,0.17665213,3321.7,3320.5,0.96817611]
[1768675134994,0.99479164,3321.6,3320.5,0.96817611]
[1768675135199,0.17665213,3321.7,3320.5,0.96817611]
[1768675135400,0.99484834,3321.6,3320.5,0.96817611]
[1768675135588,0.17665213,3321.7,3320.5,0.96817611]
[1768675135896,0.99484834,3321.6,3320.5,0.96817611]
[1768675136086,0.17665213,3321.7,3320.5,0.96817611]
[1768675136286,0.99485019,3321.6,3320.5,0.96817611]
[1768675136587,0.17665213,3321.7,3320.5,0.96817611]
[1768675136788,0.99492889,3321.6,3320.5,0.96817611]
[1768675136990,0.17665213,3321.7,3320.5,0.96817611]
[1768675137290,0.99492936,3321.6,3320.5,0.96817611]
[1768675137487,0.17665213,3321.7,3320.5,0.96817611]
[1768675137687,0.99502928,3321.6,3320.5,0.96817611]
[1768675137895,0.17665213,3321.7,3320.5,0.96817611]
[1768675138099,0.99502659,3321.6,3320.5,0.96817611]
[1768675138397,0.17665213,3321.7,3320.5,0.96817611]
[1768675138598,0.99514894,3321.6,3320.5,0.96817611]
[1768675138799,0.17665213,3321.7,3320.5,0.96817611]
[1768675139104,0.99514823,3321.6,3320.5,0.96817611]
[1768675139302,0.99529717,3321.5,3320.5,0.96817611]
[1768675139502,0.17665213,3321.7,3320.5,0.96817611]
[1768675139706,0.99529717,3321.6,3320.5,0.96817611]
[1768675140003,0.99529717,3321.5,3320.5,0.96817611]
[1768675140205,0.17665213,3321.7,3320.5,0.96817611]
[1768675140502,0.99546116,3321.6,3320.5,0.96817611]
[1768675140804,0.99546116,3321.5,3320.5,0.96817611]
[1768675141096,0.17665213,3321.7,3320.7,0.96817611]
[1768675141303,0.99546449,3321.6,3320.7,0.96817611]
[1768675141493,0.99546449,3321.5,3320.7,0.96817611]
[1768675141694,0.15056,3322.1,3320.7,0.96817611]
[1768675141906,0.99558029,3322.0,3320.7,0.96817611]
[1768675142093,0.99558029,3321.9,3320.7,0.96817611]
[1768675142391,0.99558029,3321.8,3320.7,0.96817611]
[1768675142588,0.99558029,3321.7,3320.7,0.96817611]
[1768675142789,0.99558029,3321.6,3320.7,0.96817611]
[1768675142989,0.99558029,3321.5,3320.7,0.96817611]
[1768675143190,0.15056,3322.1,3320.7,0.96817611]
[1768675143389,0.99577645,3322.0,3320.4,0.17165977]
[1768675143605,0.99577645,3321.9,3320.4,0.17165977]
[1768675143808,0.99577645,3321.8,3320.4,0.17165977]
[1768675144104,0.99577645,3321.7,3320.4,0.17165977]
[1768675144303,0.99577645,3321.6,3320.4,0.17165977]
[1768675144507,0.99577645,3321.5,3320.4,0.17165977]
[1768675144706,0.15056,3322.1,3320.4,0.17165977]
[1768675144901,0.99582084,3322.0,3320.4,0.17165977]
[1768675145098,0.99582084,3321.9,3320.4,0.17165977]
[1768675145298,0.99582084,3321.8,3320.4,0.17165977]
[1768675145500,0.99582084,3321.7,3320.4,0.17165977]
[1768675145700,0.99582084,3321.6,3320.4,0.17165977]
[1768675146000,0.99582084,3321.5,3320.4,0.17165977]
[1768675146307,0.33102876,3322.1,3320.4,0.17165977]
[1768675146608,0.99601211,3322.0,3320.4,0.17165977]
[1768675146791,0.99601211,3321.9,3320.4,0.17165977]
[1768675146996,0.99601211,3321.8,3320.7,1.13949164]
[1768675147203,0.99601211,3321.7,3320.7,1.13949164]
[1768675147407,0.18046876,3322.5,3320.7,1.13949164]
[1768675147706,1.17534163,3322.4,3320.7,1.13949164]
[1768675147897,0.99487287,3322.3,3320.7,1.13949164]
[1768675148907,0.99487287,3322.3,3320.8,0.17165977]
[1768675149407,0.99487287,3322.3,3321.1,0.96783187]
[1768675156712,0.99487287,3322.3,3321.1,1.13949164]
[1768675156915,0.00333072,3322.6,3321.1,1.13949164]
[1768675157218,0.99330183,3322.5,3321.1,1.13949164]
[1768675157408,0.99330183,3322.4,3321.1,1.13949164]
[1768675157604,0.00333072,3322.6,3321.1,1.13949164]
[1768675157806,0.9930891,3322.5,3321.1,1.13949164]
[1768675158106,0.9930891,3322.4,3321.1,1.13949164]
[1768675158304,0.00333072,3322.6,3321.1,1.13949164]
[1768675158514,0.99292147,3322.5,3321.1,1.13949164]
[1768675158715,0.99292147,3322.4,3321.1,1.13949164]
[1768675158910,0.00333072,3322.6,3321.1,1.13949164]
[1768675159111,0.99292147,3322.5,3321.1,1.13949164]
[1768675159314,0.99292147,3322.4,3321.1,1.13949164]
[1768675159514,0.00333072,3322.6,3321.1,1.13949164]
[1768675159708,0.9918737,3322.5,3321.1,1.13949164]
[1768675159911,0.9918737,3322.4,3321.1,1.13949164]
[1768675160208,0.00333072,3322.6,3321.1,1.13949164]
[1768675160414,0.99177024,3322.5,3321.1,1.13949164]
[1768675160614,0.99177024,3322.4,3321.1,1.13949164]
[1768675160824,0.00333072,3322.6,3321.1,1.13949164]
[1768675161011,0.99177024,3322.5,3321.1,1.13949164]
[1768675161210,0.99177024,3322.4,3321.1,1.13949164]
[1768675161414,0.00333072,3322.6,3321.1,1.13949164]
[1768675161614,0.99169239,3322.5,3321.1,1.13949164]
[1768675161814,0.99169239,3322.4,3321.1,1.13949164]
[1768675162010,0.00333072,3322.6,3321.1,1.13949164]
[1768675162211,0.99169239,3322.5,3321.1,1.13949164]
[1768675162511,0.99169239,3322.4,3321.1,1.13949164]
[1768675162810,0.00333072,3322.6,3321.1,1.13949164]
[1768675163013,0.99163967,3322.5,3321.1,1.13949164]
[1768675163215,0.99163967,3322.4,3321.1,1.13949164]
[1768675163519,0.00333072,3322.6,3321.1,1.13949164]
[1768675163720,0.99161162,3322.5,3321.1,1.13949164]
[1768675163909,0.99161162,3322.4,3321.1,1.13949164]
[1768675164111,0.00333072,3322.6,3321.1,1.13949164]
[1768675164309,0.99160348,3322.5,3321.1,1.13949164]
[1768675164615,0.00333072,3322.6,3321.1,1.13949164]
[1768675164818,0.99156619,3322.5,3321.1,1.13949164]
[1768675165011,0.00333072,3322.6,3321.1,1.13949164]
[1768675165210,0.99156675,3322.5,3321.1,1.13949164]
[1768675165412,0.00333072,3322.6,3321.1,1.13949164]
[1768675165614,0.99155881,3322.5,3321.1,1.13949164]
[1768675165816,0.00333072,3322.6,3321.1,1.13949164]
[1768675166816,0.18192738,3322.6,3321.1,1.13949164]
[1768675174327,0.99255707,3322.5,3321.1,1.13949164]
[1768675174526,0.18192738,3322.6,3321.1,1.13949164]
[1768675174718,0.99255707,3322.5,3321.1,1.13949164]
[1768675174925,0.18192738,3322.6,3321.1,1.13949164]
[1768675175122,0.99255706,3322.5,3321.1,0.17165977]
[1768675175323,0.18192738,3322.6,3321.1,0.17165977]
[1768675175525,0.9928755,3322.5,3321.1,0.17165977]
[1768675175836,0.18192738,3322.6,3321.1,0.17165977]
[1768675176322,0.99287548,3322.5,3321.1,0.17165977]
[1768675176521,0.18192738,3322.6,3321.1,0.17165977]
[1768675176722,0.99329466,3322.5,3321.1,0.17165977]
[1768675176930,0.18192738,3322.6,3321.1,0.17165977]
[1768675177226,0.99329468,3322.5,3321.1,0.17165977]
[1768675177426,0.99329468,3322.4,3321.1,0.17165977]
[1768675177622,0.18192738,3322.6,3321.1,0.17165977]
[1768675177928,0.99354735,3322.5,3321.1,0.17165977]
[1768675178130,0.99354735,3322.4,3321.1,0.17165977]
[1768675178428,0.18192738,3322.6,3321.1,0.17165977]
[1768675178631,0.99379067,3322.5,3321.1,0.17165977]
[1768675178927,0.99379067,3322.4,3321.1,0.17165977]
[1768675179128,0.18192738,3322.6,3321.1,0.17165977]
[1768675179329,0.99379064,3322.5,3321.1,0.17165977]
[1768675179532,0.99379064,3322.4,3321.1,0.17165977]
[1768675179828,0.18192738,3322.6,3321.1,0.17165977]
[1768675180032,0.99383716,3322.5,3321.1,0.17165977]
[1768675180218,0.99383716,3322.4,3321.1,0.17165977]
[1768675180418,0.18192738,3322.6,3321.1,0.17165977]
[1768675180619,0.99389013,3322.5,3321.1,0.17165977]
[1768675180814,0.99389013,3322.4,3321.1,0.17165977]
[1768675181017,0.18192738,3322.6,3321.1,0.17165977]
[1768675181218,0.99388955,3322.5,3321.1,0.17165977]
[1768675181426,0.99388955,3322.4,3321.1,0.17165977]
[1768675181625,0.18192738,3322.6,3321.1,0.17165977]
[1768675181822,0.99395293,3322.5,3321.1,0.17165977]
[1768675182027,0.99395293,3322.4,3321.1,0.17165977]
[1768675182325,0.18192738,3322.6,3321.1,0.17165977]
[1768675182521,1.18107114,3322.5,3321.0,0.96783187]
[1768675182723,0.99403193,3322.4,3321.0,0.96783187]
[1768675185730,0.99403193,3322.4,3320.7,0.33121914]
[1768675185934,1.18107114,3322.4,3320.7,0.33121914]
[1768675186232,0.18703921,3322.4,3320.7,0.33121914]
[1768675186433,0.99467913,3322.3,3320.7,0.33121914]
[1768675186635,0.18703921,3322.4,3320.7,0.33121914]
[1768675186830,0.99467913,3322.3,3320.7,0.33121914]
[1768675187031,0.18703921,3322.4,3320.7,0.33121914]
[1768675187231,0.99467913,3322.3,3320.7,0.33121914]
[1768675187531,0.18703921,3322.4,3320.7,0.33121914]
[1768675187731,0.99470263,3322.3,3320.7,0.33121914]
[1768675188030,0.18703921,3322.4,3320.7,0.33121914]
[1768675188227,0.99470263,3322.3,3320.7,0.33121914]
[1768675188429,0.18703921,3322.4,3320.7,0.33121914]
[1768675188630,0.99472214,3322.3,3320.7,0.33121914]
[1768675188831,0.18703921,3322.4,3320.7,0.33121914]
[1768675189028,0.99472157,3322.3,3320.7,0.33121914]
[1768675189227,0.18703921,3322.4,3320.7,0.33121914]
[1768675189530,0.99471259,3322.3,3320.7,0.33121914]
[1768675189833,0.18703921,3322.4,3320.7,0.33121914]
[1768675190025,0.99471241,3322.3,3320.7,0.33121914]
[1768675190224,0.18703921,3322.4,3320.7,0.33121914]
[1768675190425,0.99474062,3322.3,3320.7,0.33121914]
[1768675190625,0.18703921,3322.4,3320.7,0.33121914]
[1768675190842,0.99474062,3322.3,3320.7,0.33121914]
[1768675191025,0.18703921,3322.4,3320.7,0.33121914]
[1768675191225,0.99474062,3322.3,3320.7,0.33121914]
[1768675191436,0.18703921,3322.4,3320.7,0.33121914]
[1768675191737,0.99477623,3322.3,3320.7,0.33121914]
[1768675191938,0.18703921,3322.4,3320.7,0.33121914]
[1768675192138,0.99477623,3322.3,3320.7,0.33121914]
[1768675192343,0.18703921,3322.4,3320.7,0.33121914]
[1768675192536,0.99482543,3322.3,3320.7,0.33121914]
[1768675192737,0.18703921,3322.4,3320.7,0.33121914]
[1768675193034,0.99482543,3322.3,3320.7,0.33121914]
[1768675193235,0.18703921,3322.4,3320.7,0.33121914]
[1768675193441,0.99493579,3322.3,3320.7,0.33121914]
[1768675193640,0.18703921,3322.4,3320.7,0.33121914]
[1768675193824,0.99493577,3322.3,3320.7,0.33121914]
[1768675194027,0.18703921,3322.4,3320.7,0.33121914]
[1768675194234,0.99493576,3322.3,3320.7,0.33121914]
[1768675194435,0.18703921,3322.4,3320.7,0.33121914]
[1768675194644,0.99493669,3322.3,3320.7,0.33121914]
[1768675194834,0.18703921,3322.4,3320.7,0.33121914]
[1768675195130,0.99493665,3322.3,3320.7,0.33121914]
[1768675195331,0.18703921,3322.4,3320.7,0.33121914]
[1768675195531,0.99493641,3322.3,3320.7,0.33121914]
[1768675195737,0.18703921,3322.4,3320.7,0.33121914]
[1768675195942,0.9949364,3322.3,3320.7,0.33121914]
[1768675196140,0.18703921,3322.4,3320.7,0.33121914]
[1768675196341,0.99493639,3322.3,3320.7,0.33121914]
[1768675196533,0.18703921,3322.4,3320.7,0.33121914]
[1768675196730,0.99493624,3322.3,3320.7,0.33121914]
[1768675196930,0.18703921,3322.4,3320.7,0.33121914]
[1768675197130,0.9949362,3322.3,3320.7,0.33121914]
[1768675197337,0.18703921,3322.4,3320.7,0.33121914]
[1768675197540,0.99493605,3322.3,3320.7,0.33121914]
[1768675197736,0.18703921,3322.4,3320.7,0.33121914]
[1768675197944,0.99493604,3322.3,3320.7,0.33121914]
[1768675198241,0.18703921,3322.4,3320.7,0.33121914]
[1768675198441,0.99493617,3322.3,3320.7,0.33121914]
[1768675198740,0.18703921,3322.4,3320.7,0.33121914]
[1768675198941,0.9949362,3322.3,3320.7,0.33121914]
[1768675199240,0.18703921,3322.4,3320.7,0.33121914]
[1768675199439,0.99493637,3322.3,3320.7,0.33121914]
[1768675199740,0.18703921,3322.4,3320.7,0.33121914]
[1768675199940,0.99493635,3322.3,3320.7,0.33121914]
[1768675200145,0.18703921,3322.4,3320.7,0.33121914]
[1768675200441,0.99493642,3322.3,3320.7,0.33121914]
[1768675200642,0.18703921,3322.4,3320.7,0.33121914]
[1768675200941,0.99493636,3322.3,3320.7,0.33121914]
[1768675201141,0.18703921,3322.4,3320.7,0.33121914]
[1768675201438,0.99493634,3322.3,3320.7,0.33121914]
[1768675201639,0.18703921,3322.4,3320.7,0.33121914]
[1768675201843,0.9949366,3322.3,3320.7,0.33121914]
[1768675202140,0.18703921,3322.4,3320.7,0.33121914]
[1768675202345,0.99493691,3322.3,3320.7,0.33121914]
[1768675202543,0.18703921,3322.4,3320.7,0.33121914]
[1768675202744,0.99493714,3322.3,3320.7,0.33121914]
[1768675203042,0.18703921,3322.4,3320.7,0.33121914]
[1768675203239,0.99493712,3322.3,3320.7,0.33121914]
[1768675203544,0.18703921,3322.4,3321.3,0.96751727]
[1768675203738,0.99493767,3322.3,3321.3,0.96751727]
[1768675204042,0.18703921,3322.4,3321.3,0.96751727]
[1768675204241,0.9949378,3322.3,3321.3,0.96751727]
[1768675204441,0.18703921,3322.4,3321.3,0.96751727]
[1768675204643,0.99493743,3322.3,3321.3,0.96751727]
[1768675204942,0.18703921,3322.4,3321.3,0.96751727]
[1768675205142,0.99493741,3322.3,3321.3,0.96751727]
[1768675205344,0.18703921,3322.4,3321.3,0.96751727]
[1768675205544,0.99493696,3322.3,3321.3,0.96751727]
[1768675205747,0.99493712,3322.2,3321.3,0.96751727]
[1768675205958,0.18703921,3322.4,3321.3,0.96751727]
[1768675206157,0.99493712,3322.3,3321.3,0.96751727]
[1768675206359,0.99493712,3322.2,3321.3,0.96751727]
[1768675206556,0.18703921,3322.4,3321.3,0.96751727]
[1768675206755,0.99493711,3322.3,3321.3,0.96751727]
[1768675206963,0.99493711,3322.2,3321.3,0.96751727]
[1768675207162,0.18703921,3322.4,3321.3,0.96751727]
[1768675207364,0.9949367,3322.3,3321.3,0.96751727]
[1768675207562,0.9949367,3322.2,3321.3,0.96751727]
[1768675207763,0.18703921,3322.4,3321.3,0.96751727]
[1768675207967,0.9949367,3322.3,3321.3,0.96751727]
[1768675208158,0.9949367,3322.2,3321.3,0.96751727]
[1768675208359,0.18703921,3322.4,3321.3,0.96751727]
[1768675208560,0.99493717,3322.3,3321.3,0.96751727]
[1768675208767,0.99493717,3322.2,3321.3,0.96751727]
[1768675208970,0.18703921,3322.4,3321.3,0.96751727]
[1768675209267,0.9949372,3322.3,3321.3,0.96751727]
[1768675209465,0.9949372,3322.2,3321.3,0.96751727]
[1768675209665,0.18703921,3322.4,3321.3,0.96751727]
[1768675209863,0.9949369,3322.3,3321.3,0.96751727]
[1768675210169,0.9949369,3322.2,3321.3,0.96751727]
[1768675210466,0.18703921,3322.4,3321.3,0.96751727]
[1768675210766,0.9949373,3322.3,3321.3,0.96751727]
[1768675210951,0.9949373,3322.2,3321.3,0.96751727]
[1768675211157,0.18703921,3322.4,3321.3,0.96751727]
[1768675211357,0.99493759,3322.3,3321.3,0.96751727]
[1768675211559,0.99493759,3322.2,3321.3,0.96751727]
[1768675211857,0.18703921,3322.4,3321.3,0.96751727]
[1768675212057,0.9949372,3322.3,3321.3,0.96751727]
[1768675212367,0.9949372,3322.2,3321.3,0.96751727]
[1768675212566,0.18703921,3322.4,3321.3,0.96751727]
[1768675212768,0.99493709,3322.3,3321.3,0.96751727]
[1768675213069,0.99493709,3322.2,3321.3,0.96751727]
[1768675213365,0.18703921,3322.4,3321.3,0.96751727]
[1768675213566,0.99493819,3322.3,3321.3,0.96751727]
[1768675213761,0.99493819,3322.2,3321.3,0.96751727]
[1768675213964,0.18703921,3322.4,3321.3,0.96751727]
[1768675214262,0.99493823,3322.3,3321.3,0.96751727]
[1768675214461,0.99493823,3322.2,3321.3,0.96751727]
[1768675214658,0.18703921,3322.4,3321.3,0.96751727]
[1768675214968,0.99493977,3322.3,3321.3,0.96751727]
[1768675215167,0.99493977,3322.2,3321.3,0.96751727]
[1768675215363,0.18703921,3322.4,3321.3,0.96751727]
[1768675215564,0.99494228,3322.3,3321.3,0.96751727]
[1768675215870,0.18703921,3322.4,3321.3,0.96751727]
[1768675216074,0.99494231,3322.3,3321.3,0.96751727]
[1768675216274,0.18703921,3322.4,3321.3,0.96751727]
[1768675216462,0.99494326,3322.3,3321.3,0.96751727]
[1768675216761,0.18703921,3322.4,3321.3,0.96751727]
[1768675216955,0.99494325,3322.3,3321.3,0.96751727]
[1768675217158,0.18703921,3322.4,3321.3,0.96751727]
[1768675217370,0.99494296,3322.3,3321.3,0.96751727]
[1768675217572,0.18703921,3322.4,3321.3,0.96751727]
[1768675217869,0.99494397,3322.3,3321.3,0.96751727]
[1768675218073,0.18703921,3322.4,3321.3,0.96751727]
[1768675218369,0.99494412,3322.3,3321.3,0.96751727]
[1768675218670,0.18703921,3322.4,3321.3,0.96751727]
[1768675218971,0.99494547,3322.3,3321.3,0.96751727]
[1768675219168,0.18703921,3322.4,3321.3,0.96751727]
[1768675219367,0.99494556,3322.3,3321.3,0.96751727]
[1768675219566,0.18703921,3322.4,3321.3,0.96751727]
[1768675219759,0.99492718,3322.3,3321.3,0.96751727]
[1768675219961,0.18703921,3322.4,3321.3,0.96751727]
[1768675220161,0.99492718,3322.3,3321.3,0.96751727]
[1768675220358,0.18703921,3322.4,3321.3,0.96751727]
[1768675220562,0.9949271,3322.3,3321.3,0.96751727]
[1768675220760,0.18703921,3322.4,3321.3,0.96751727]
[1768675220971,0.99492714,3322.3,3321.3,0.96751727]
[1768675221272,0.18703921,3322.4,3321.3,0.96751727]
[1768675221472,0.99492678,3322.3,3321.3,0.96751727]
[1768675221670,0.18703921,3322.4,3321.3,0.96751727]
[1768675221872,0.99492677,3322.3,3321.3,0.96751727]
[1768675222072,0.18703921,3322.4,3321.3,0.96751727]
[1768675222268,0.99492676,3322.3,3321.3,0.96751727]
[1768675222472,0.18703921,3322.4,3321.3,0.96751727]
[1768675222672,0.99492667,3322.3,3321.3,0.96751727]
[1768675222874,0.18703921,3322.4,3321.3,0.96751727]
[1768675223079,0.99492666,3322.3,3321.3,0.96751727]
[1768675223280,0.18703921,3322.4,3321.3,0.96751727]
[1768675223578,0.99492656,3322.3,3321.3,0.96751727]
[1768675223779,0.18703921,3322.4,3321.3,0.96751727]
[1768675224080,0.99492654,3322.3,3321.3,0.96751727]
[1768675224273,0.18703921,3322.4,3321.3,0.96751727]
[1768675224474,0.9949264,3322.3,3321.3,0.96751727]
[1768675224774,0.18703921,3322.4,3321.3,0.96751727]
[1768675224976,0.99492643,3322.3,3321.3,0.96751727]
[1768675225175,0.18703921,3322.4,3321.3,0.96751727]
[1768675225374,0.9949265,3322.3,3321.3,0.96751727]
[1768675225581,0.18703921,3322.4,3321.3,0.96751727]
[1768675225782,0.99492633,3322.3,3321.3,0.96751727]
[1768675225974,0.18703921,3322.4,3321.3,0.96751727]
[1768675226273,0.99492633,3322.3,3321.3,0.96751727]
[1768675226572,0.18703921,3322.4,3321.3,0.96751727]
[1768675226774,0.99492625,3322.3,3321.3,0.96751727]
[1768675226973,0.18703921,3322.4,3321.3,0.96751727]
[1768675227180,0.99492623,3322.3,3321.3,0.96751727]
[1768675227382,0.18703921,3322.4,3321.3,0.96751727]
[1768675227679,0.99492614,3322.3,3321.3,0.96751727]
[1768675227882,0.18703921,3322.4,3321.3,0.96751727]
[1768675228069,0.99492613,3322.3,3321.3,0.96751727]
[1768675228268,0.18703921,3322.4,3321.3,0.96751727]
[1768675228481,0.99492623,3322.3,3321.3,0.96751727]
[1768675228781,0.18703921,3322.4,3321.3,0.96751727]
[1768675228981,0.99492622,3322.3,3321.3,0.96751727]
[1768675229181,0.18703921,3322.4,3321.3,0.96751727]
[1768675229382,0.99492634,3322.3,3321.3,0.96751727]
[1768675229576,0.18703921,3322.4,3321.3,0.96751727]
[1768675229777,0.99492626,3322.3,3321.3,0.96751727]
[1768675229980,0.18703921,3322.4,3321.3,0.96751727]
[1768675230168,0.99492631,3322.3,3321.3,0.96751727]
[1768675230373,0.18703921,3322.4,3321.3,0.96751727]
[1768675230582,0.99492645,3322.3,3321.3,0.96751727]
[1768675230783,0.18703921,3322.4,3321.3,0.96751727]
[1768675230984,0.99492644,3322.3,3321.3,0.96751727]
[1768675231284,0.18703921,3322.4,3321.3,0.96751727]
[1768675231484,0.99492672,3322.3,3321.3,0.96751727]
[1768675231782,0.18703921,3322.4,3321.3,0.96751727]
[1768675232090,0.99492669,3322.3,3321.3,0.96751727]
[1768675232278,0.18703921,3322.4,3321.3,0.96751727]
[1768675232478,0.99492682,3322.3,3321.3,0.96751727]
[1768675232679,0.18703921,3322.4,3321.3,0.96751727]
[1768675232880,0.9949268,3322.3,3321.3,0.96751727]
[1768675233083,0.18703921,3322.4,3321.3,0.96751727]
[1768675233381,0.99492679,3322.3,3321.3,0.96751727]
[1768675233681,0.18703921,3322.4,3321.3,0.96751727]
[1768675233881,0.99492692,3322.3,3321.3,0.96751727]
[1768675234083,0.18703921,3322.4,3321.3,0.96751727]
[1768675234382,0.99492691,3322.3,3321.3,0.96751727]
[1768675234585,0.18703921,3322.4,3321.3,0.96751727]
[1768675234790,0.99492702,3322.3,3321.3,0.96751727]
[1768675234989,0.18703921,3322.4,3321.3,0.96751727]
[1768675235287,0.99492704,3322.3,3321.3,0.96751727]
[1768675235488,0.18703921,3322.4,3321.3,0.96751727]
[1768675235683,0.99492711,3322.3,3321.3,0.96751727]
[1768675235983,0.18703921,3322.4,3321.3,0.96751727]
[1768675236183,0.99492709,3322.3,3321.3,0.96751727]
[1768675236383,0.18703921,3322.4,3321.3,0.96751727]
[1768675236583,0.9949272,3322.3,3321.3,0.96751727]
[1768675236779,0.18703921,3322.4,3321.3,0.96751727]
[1768675236985,0.99492719,3322.3,3321.3,0.96751727]
[1768675237183,0.18703921,3322.4,3321.3,0.96751727]
[1768675237382,0.99492729,3322.3,3321.3,0.96751727]
[1768675237586,0.18703921,3322.4,3321.3,0.96751727]
[1768675237786,0.99492728,3322.3,3321.3,0.96751727]
[1768675238089,0.18703921,3322.4,3321.3,0.96751727]
[1768675238281,0.99492732,3322.3,3321.3,0.96751727]
[1768675238485,0.18703921,3322.4,3321.3,0.96751727]
[1768675238686,0.99492841,3322.3,3321.3,0.96751727]
[1768675238989,0.18703921,3322.4,3321.3,0.96751727]
[1768675239285,0.9949284,3322.3,3321.3,0.96751727]
[1768675239591,0.18703921,3322.4,3321.3,0.96751727]
[1768675239783,0.16306685,3322.2,3320.1,5.4001755]
[1768675239985,0.99492849,3322.1,3321.1,0.96751727]
[1768675240175,0.99492849,3322.1,3321.5,0.96751727]
[1768675240488,0.16639757,3322.6,3321.5,0.96751727]
[1768675240685,0.99455755,3322.5,3321.5,0.96751727]
[1768675240883,0.16639757,3322.6,3321.5,0.96751727]
[1768675240884,0.99455755,3322.4,3321.5,0.96751727]
[1768675241086,0.99455755,3322.3,3321.5,0.96751727]
[1768675241281,0.99455755,3322.2,3321.5,0.96751727]
[1768675241475,0.16639757,3322.6,3321.5,0.96751727]
[1768675241679,0.99440194,3322.5,3321.5,0.96751727]
[1768675241878,0.99440194,3322.4,3321.5,0.96751727]
[1768675242079,0.99440194,3322.3,3321.5,0.96751727]
[1768675242387,0.99440194,3322.2,3321.5,0.96751727]
[1768675242585,0.16639757,3322.6,3321.5,0.96751727]